[Event "Elegant Academy GM Aspirant-II"]
[Site "Dhaka"]
[Date "2024.02.27"]
[Round "9.3"]
[White "Mayank Chakraborty"]
[Black "Siddharth, Jagadeesh"]
[Result "1/2-1/2"]
[ECO "A49"]
[WhiteElo "2409"]
[BlackElo "2457"]
[Annotator "TA"]
[PlyCount "37"]
[EventDate "2024.02.21"]
[EventType "tourn"]
[EventCountry "BAN"]
[SourceTitle "playchess.com"]
[Source "ChessBase"]
[SourceQuality "1"]
[TimeControl "5400+30"]

{[%evp 18,37,14,12,39,0,0,0,0,0,0,0,0,-6,0,0,0,0,0,0,0,0]} 1. Nf3 {[%emt 0:00:03]} Nf6 {[%emt 0:02:39]} 2. g3 {[%emt 0:00:02]} g6 {[%emt 0:00:08]} 3. b3 {[%emt 0:00:03]} Bg7 {[%emt 0:00:08]} 4. Bb2 {[%emt 0:00:06]} O-O {[%emt 0:00:10]} 5. Bg2 {[%emt 0:00:02]} d6 {[%emt 0:00:10]} 6. d4 {[%emt 0:00:05]} a5 {[%emt 0:00:05]} 7. O-O {[%emt 0:00:10]} a4 {[%emt 0:00:12]} 8. c4 {[%emt 0:00:06]} axb3 {[%emt 0:00:05]} 9. axb3 {[%emt 0:00:05]} Rxa1 {[%emt 0:00:05]} 10. Bxa1 {[%emt 0:00:06]} c6 {[%emt 0:00:10]} 11. Nc3 {[%emt 0:03:41]} Na6 {[%emt 0:00:06] The position is equal.} 12. e4 {[%emt 0:03:10]} Bg4 {[%emt 0:00:09]} 13. h3 {[%emt 0:03:47]} Bxf3 {[%emt 0:07:27]} 14. Bxf3 {[%emt 0:00:02]} Nd7 {[%emt 0:00:46]} 15. Na4 {[%emt 0:00:06]} Nb6 {[%emt 0:00:04]} 16. Nc3 {[%emt 0:00:04]} Nd7 {[%emt 0:00:03]} 17. Na4 {[%emt 0:00:05]} Nb6 {[%emt 0:00:04]} 18. Nc3 {[%emt 0:00:05]} Nd7 {[%emt 0:00:03]} 19. Na4 {[%emt 1:28:12] An uneventful encounter.   Weighted Error Value: White=0.06 (flawless) /Black=0.03 (flawless) .  Inaccurate:     	White=1     	---        OK:         	White=4     	Black=6} 1/2-1/2

[Event "Elegant Academy GM Aspirant-II"]
[Site "Dhaka"]
[Date "2024.02.27"]
[Round "9.5"]
[White "Rahman, Ziaur"]
[Black "Liyanage, Ranindu Dilshan"]
[Result "1/2-1/2"]
[ECO "D02"]
[WhiteElo "2428"]
[BlackElo "2366"]
[Annotator "RC"]
[PlyCount "20"]
[EventDate "2024.02.21"]
[EventType "tourn"]
[EventCountry "BAN"]
[SourceTitle "playchess.com"]
[Source "ChessBase"]
[SourceQuality "1"]
[TimeControl "5400+30"]

1. Nf3 {[%emt 0:00:05]} d5 {[%emt 0:04:00]} 2. g3 {[%emt 0:00:54]} g6 {[%emt 0:00:45]} 3. Bg2 {[%emt 0:00:12]} Bg7 {[%emt 0:00:05]} 4. d4 {[%emt 0:00:02]} Nf6 {[%emt 0:00:07]} 5. O-O {[%emt 0:00:03]} O-O {[%emt 0:00:06]} 6. c3 {[%emt 0:00:02]} c6 {[%emt 0:00:11]} 7. Nbd2 {[%emt 0:00:03]} Bf5 {[%emt 0:00:06]} 8. Nh4 {[%emt 0:00:03]} Bc8 {[%emt 0:00:06]} 9. Nhf3 {[%emt 0:00:02]} Bf5 {[%emt 0:00:06]} 10. Nh4 {[%emt 0:00:03]} Bc8 {[%emt 0:00:05]} 1/2-1/2